bitfinex/quotes_SOLUSD_20250201
["timestamp","ask_amount","ask_price","bid_price","bid_amount"]
[1738452280364,3.4,213.99,213.84,20.73797729]
[1738452281564,21.5744,214.0,213.84,20.73797729]
[1738452282247,13.41184853,213.99,213.84,6.6248]
[1738452282661,13.41184853,213.99,213.85,0.70132757]
[1738452283677,20.0,213.92,213.84,0.03]
[1738452285473,20.0,213.88,213.84,0.03]
[1738452286185,20.0,213.91,213.84,0.03]
[1738452286487,20.0,213.9,213.84,0.03]
[1738452286871,20.0,213.9,213.69,0.70154606]
[1738452286872,20.0,213.86,213.69,0.70154606]
[1738452287061,20.0,213.86,213.7,0.7017481]
[1738452287262,20.0,213.82,213.65,13.41184853]
[1738452287458,20.0,213.82,213.66,0.70177187]
[1738452287663,20.0,213.82,213.63,0.70185028]
[1738452288468,21.18280183,213.82,213.64,13.41184853]
[1738452288775,21.18280183,213.82,213.65,0.70185162]
[1738452289184,21.18280183,213.82,213.64,0.70188368]
[1738452289394,20.0,213.78,213.64,0.70188368]
[1738452291788,1.0,213.74,213.58,1.592]
[1738452291991,1.0,213.74,213.59,0.70188302]
[1738452293686,1.0,213.74,213.59,5.38368302]
[1738452293888,1.0,213.74,213.59,0.70188302]
[1738452294183,1.0,213.72,213.59,0.70188302]
[1738452294501,1.0,213.7,213.59,0.70188302]
[1738452294876,0.70188368,213.69,213.59,0.73188302]
[1738452295786,1.0,213.7,213.59,0.73188302]
[1738452295969,0.70188368,213.69,213.59,0.73188302]
[1738452296175,1.0,213.7,213.59,0.73188302]
[1738452298996,1.0,213.76,213.61,23.11297711]
[1738452299291,1.70188368,213.76,213.63,13.41184853]
[1738452299493,1.0,213.72,213.64,0.70187403]
[1738452299680,21.70188368,213.76,213.6,0.70196159]
[1738452299882,21.0,213.76,213.61,13.41184853]
[1738452300075,2.20778368,213.77,213.61,13.41184853]
[1738452300076,2.5059,213.77,213.63,13.41184853]
[1738452300281,0.70188368,213.76,213.65,13.41184853]
[1738452300487,2.5059,213.77,213.66,0.70181611]
[1738452300876,7.52720183,213.82,213.68,6.2767]
[1738452300877,7.3444,213.82,213.68,6.2767]
[1738452301082,1.0,213.87,213.7,14.41184853]
[1738452301398,1.70188368,213.87,213.72,13.41184853]
[1738452301607,0.70188368,213.85,213.73,0.70151019]
[1738452301771,0.70188368,213.86,213.73,0.70151019]
[1738452301967,0.70188368,213.86,213.74,13.41184853]
[1738452302195,0.70188368,213.86,213.75,0.70147863]
[1738452302383,0.70188368,213.87,213.75,0.70147863]
[1738452302577,21.70188368,213.87,213.75,0.70147863]
[1738452302783,1.0,213.83,213.75,0.70147863]
[1738452303092,1.0,213.81,213.71,0.70162001]
[1738452303276,0.70188368,213.8,213.65,0.70174658]
[1738452303478,13.41184853,213.86,213.66,13.41184853]
[1738452303479,1.0,213.83,213.66,13.41184853]
[1738452303792,0.70188368,213.82,213.68,13.41184853]
[1738452303988,0.70188368,213.82,213.7,13.41184853]
[1738452304188,1.0,213.87,213.72,13.41184853]
[1738452304371,0.70188368,213.86,213.74,13.41184853]
[1738452304571,0.70188368,213.86,213.75,0.70150227]
[1738452306085,1.0,213.82,213.7,0.70155775]
[1738452306393,1.70188368,213.82,213.71,0.70165641]
[1738452306577,1.70188368,213.82,213.7,13.41184853]
[1738452306777,1.70188368,213.82,213.71,0.70165139]
[1738452306976,20.0,213.78,213.71,0.70165139]
[1738452307172,0.70188368,213.77,213.65,0.70178628]
[1738452307603,0.70188368,213.77,213.66,13.41184853]
[1738452307772,20.0,213.76,213.67,0.70181431]
[1738452308598,20.0,213.76,213.68,13.41184853]
[1738452308902,20.0,213.76,213.69,0.70168225]
[1738452309203,3.42,213.79,213.7,13.41184853]
[1738452309414,0.70188368,213.84,213.72,13.41184853]
[1738452309703,0.70188368,213.84,213.73,0.70154221]
[1738452310689,20.0,213.82,213.73,0.70154221]
[1738452311593,20.70188368,213.82,213.68,0.70164516]
[1738452311798,21.0,213.81,213.68,0.70164516]
[1738452311989,1.0,213.74,213.65,0.70176098]
[1738452312197,0.70188368,213.73,213.63,0.70192082]
[1738452312991,0.70188368,213.74,213.63,0.70192082]
[1738452313782,20.0,213.75,213.64,13.41184853]
[1738452313982,20.70188368,213.75,213.65,0.70182087]
[1738452314590,20.0,213.75,213.65,0.70182087]
[1738452314887,20.70188368,213.75,213.65,0.70182087]
[1738452316390,20.0,213.75,213.65,0.70182087]
[1738452316718,20.0,213.76,213.65,0.70182087]
[1738452317403,20.0,213.76,213.66,13.41184853]
[1738452317595,20.0,213.76,213.67,0.70173657]
[1738452318296,20.0,213.76,213.68,13.41184853]
[1738452318481,0.70188368,213.8,213.66,13.41184853]
[1738452318482,3.4,213.82,213.69,0.70171273]
[1738452318688,20.0,213.8,213.69,0.70171273]
[1738452319014,2.33228368,213.83,213.7,13.41184853]
[1738452319309,2.33228368,213.83,213.69,23.81468984]
[1738452319310,20.0,213.81,213.72,13.41184853]
[1738452319483,20.0,213.81,213.73,0.70157876]
[1738452320602,2.33228368,213.83,213.73,0.70157876]
[1738452320810,1.0,213.8,213.68,0.7016276]
[1738452321110,0.70188368,213.79,213.66,0.70172878]
[1738452321311,0.70188368,213.79,213.65,13.41184853]
[1738452321511,0.70188368,213.79,213.67,13.41184853]
[1738452321712,0.70188368,213.79,213.68,0.70173789]
[1738452322093,1.0,213.78,213.68,0.70173789]
[1738452322312,0.70188368,213.77,213.63,0.70183279]
[1738452322688,1.0,213.76,213.63,0.70183279]
[1738452322886,1.70188368,213.79,213.63,0.70183279]
[1738452323096,1.0,213.77,213.64,13.41184853]
[1738452323295,0.70188368,213.76,213.65,0.70183853]
[1738452323612,1.0,213.75,213.65,0.70183853]
[1738452323807,20.0,213.75,213.63,0.70190556]
[1738452324491,1.0,213.72,213.63,0.70190556]
[1738452324696,0.70188368,213.71,213.63,0.70190556]
[1738452326212,1.0,213.69,213.63,0.70190556]
[1738452326390,0.70188368,213.68,213.59,0.03]
[1738452327216,1.0,213.66,213.59,0.03]
[1738452327389,0.70188368,213.65,213.59,0.03]
[1738452329616,1.0,213.64,213.59,0.03]
[1738452329917,0.70188368,213.63,213.59,0.03]
[1738452330096,1.0,213.62,213.52,0.73228139]
[1738452330290,0.70188368,213.61,213.52,0.73228139]
[1738452331696,1.0,213.6,213.52,0.03]
[1738452332011,0.70188368,213.59,213.52,0.73241151]
[1738452332603,0.70188368,213.61,213.52,0.73241151]
[1738452333506,20.0,213.62,213.52,0.73241151]
[1738452333907,21.0,213.62,213.52,0.73241151]
[1738452334093,20.0,213.62,213.52,0.73241151]
[1738452334293,1.70188368,213.64,213.52,0.73241151]
[1738452334604,1.0,213.62,213.52,0.73241151]
[1738452336316,1.0,213.6,213.52,0.73241151]
[1738452336616,1.0,213.55,213.49,0.03]
[1738452337117,0.70188368,213.56,213.49,0.03]
[1738452337334,20.70188368,213.57,213.49,0.03]
[1738452337522,1.0,213.56,213.49,0.03]
[1738452338318,20.70188368,213.57,213.49,0.03]
[1738452338618,20.0,213.57,213.5,0.73246824]
[1738452339708,1.0,213.56,213.5,0.03]
[1738452339910,0.70188368,213.55,213.5,0.03]
[1738452340411,1.0,213.53,213.5,0.03]
[1738452340606,1.70188368,213.56,213.5,0.03]
[1738452340808,20.0,213.57,213.5,0.03]
[1738452341008,1.0,213.58,213.5,0.03]
[1738452341209,21.0,213.58,213.5,0.03]
[1738452341524,20.0,213.58,213.5,0.7324208]
[1738452341713,2.84209,213.61,213.5,0.7324208]
[1738452341923,1.0,213.57,213.5,0.7324208]
[1738452342224,1.0,213.57,213.51,0.70246116]
[1738452342430,1.0,213.57,213.5,0.03]
[1738452342619,1.0,213.57,213.5,0.73243143]
[1738452342925,1.0,213.57,213.5,0.03]
[1738452343124,1.0,213.55,213.5,0.03]
[1738452343305,20.70188368,213.6,213.5,0.03]
[1738452343306,1.0,213.53,213.5,0.03]
[1738452343514,1.0,213.53,213.49,0.03]
[1738452344020,1.0,213.53,213.44,0.70252005]
[1738452344205,1.0,213.51,213.44,0.70252005]
[1738452344606,1.0,213.53,213.44,0.70252005]
[1738452344835,0.70188368,213.52,213.44,0.70252005]
[1738452345025,1.0,213.56,213.44,0.70252005]
[1738452345242,0.70188368,213.55,213.44,0.70252005]
[1738452345717,1.0,213.53,213.44,0.70252005]
[1738452346099,1.0,213.51,213.44,0.70252005]
[1738452346504,1.0,213.51,213.43,40.0]
[1738452346920,20.0,213.49,213.43,40.0]
[1738452347111,1.70188368,213.48,213.43,40.0]
[1738452347908,20.70188368,213.49,213.43,40.0]
[1738452349109,1.0,213.48,213.43,40.0]
[1738452349611,20.70188368,213.49,213.43,40.0]
[1738452350727,1.0,213.48,213.43,40.0]
[1738452351427,1.0,213.46,213.43,40.0]
[1738452351818,1.0,213.44,213.43,37.6071]
[1738452352210,1.0,213.44,213.43,37.1285]
[1738452352531,1.0,213.44,213.43,37.00883221]
[1738452353221,1.70188368,213.44,213.43,37.00883221]
[1738452354413,15.11373221,213.44,213.43,19.91723193]
[1738452354620,1.70188368,213.44,213.43,16.91654951]
[1738452354828,1.0,213.44,213.43,16.91654951]
[1738452355432,1.0,213.44,213.43,16.94654951]
[1738452356609,1.0,213.44,213.43,16.91654951]
[1738452357630,1.0,213.44,213.43,7.91654951]
[1738452358129,2.16557077,213.44,213.43,7.91654951]
[1738452358325,1.0,213.39,213.37,0.03404749]
[1738452359315,2.16299052,213.39,213.37,0.03404749]
[1738452359627,1.0,213.39,213.37,0.03404749]
[1738452360142,2.16039211,213.39,213.37,0.03404749]
[1738452360320,1.0,213.39,213.37,0.03404749]
[1738452360516,22.15452621,213.39,213.38,6.31744308]
[1738452360725,1.0,213.37,213.23,28.50576813]
[1738452360927,1.0,213.33,213.23,0.70319102]
[1738452361528,1.0,213.36,213.23,28.50586813]
[1738452361723,1.0,213.34,213.23,5.39289102]
[1738452361940,1.0,213.34,213.23,0.70319102]
[1738452363541,1.0,213.32,213.23,0.70319102]
[1738452363748,1.0,213.3,213.22,0.70332538]
[1738452364258,1.0,213.32,213.22,0.70332538]
[1738452364431,1.0,213.3,213.22,0.70332538]
[1738452364616,0.70188368,213.29,213.21,26.03652041]
[1738452364845,0.9783859,213.3,213.22,0.70344721]
[1738452365136,0.70188368,213.35,213.22,0.70344721]
[1738452365137,0.9783859,213.32,213.22,0.70344721]
[1738452365437,0.9783859,213.34,213.22,0.70344721]
[1738452365633,7.71789762,213.39,213.25,14.52992196]
[1738452365634,0.70188368,213.38,213.25,14.52992196]
[1738452365841,2.16275916,213.44,213.29,27.94177049]
[1738452366136,1.18437326,213.44,213.31,28.94177049]
[1738452366314,1.18437326,213.44,213.33,13.41184853]
[1738452366520,1.68026958,213.48,213.34,0.70276426]
[1738452366721,1.68026958,213.48,213.34,5.38996426]
[1738452367218,0.9783859,213.48,213.35,13.41184853]
[1738452367441,0.9783859,213.48,213.36,0.70272067]
[1738452368549,0.70188368,213.47,213.37,0.70274398]
[1738452368715,0.9783859,213.48,213.36,13.41184853]
[1738452368915,0.70188368,213.47,213.37,0.70272108]
[1738452369151,0.9783859,213.48,213.37,0.70272108]
[1738452369726,0.70188368,213.47,213.37,0.70272108]
[1738452370034,0.9783859,213.46,213.37,0.70272108]
[1738452370227,0.70188368,213.45,213.37,0.70272108]
[1738452370428,20.0,213.47,213.37,0.70272108]
[1738452371649,1.68026958,213.49,213.37,0.70272108]
[1738452371948,0.9783859,213.46,213.37,0.70272108]
[1738452372119,0.9783859,213.44,213.36,0.70284415]
[1738452372349,0.9783859,213.42,213.31,0.70290682]
[1738452372951,0.9783859,213.44,213.31,0.70290682]
[1738452373125,1.68026958,213.49,213.33,23.21353981]
[1738452373326,1.68026958,213.49,213.34,0.70271892]
[1738452373851,20.0,213.47,213.35,13.41184853]
[1738452374026,20.0,213.47,213.36,0.70273548]
[1738452374429,1.68026958,213.46,213.36,0.70273548]
[1738452374639,20.0,213.47,213.34,0.70279899]
[1738452374951,20.0,213.47,213.35,36.62538834]
[1738452375254,20.0,213.47,213.36,0.70272942]
[1738452376355,1.5924,213.52,213.39,23.21353981]
[1738452376544,0.063,213.52,213.4,20.4518618]
[1738452377348,0.9783859,213.51,213.4,7.04001327]
[1738452377654,0.063,213.52,213.4,7.04001327]
[1738452377947,0.063,213.52,213.41,13.41184853]
[1738452378144,0.063,213.52,213.42,0.70250358]
[1738452378953,1.68026958,213.51,213.42,0.70250358]
[1738452379123,0.9783859,213.46,213.36,0.70278846]
[1738452379835,0.9783859,213.43,213.32,0.70290397]
[1738452380037,0.9783859,213.45,213.33,13.41184853]
[1738452380235,0.9783859,213.45,213.34,0.70280719]
[1738452381637,2.5814859,213.46,213.34,0.70280719]
[1738452382957,1.6031,213.46,213.34,0.70280719]
[1738452383247,2.5814859,213.46,213.34,0.70280719]
[1738452385358,1.6031,213.46,213.35,13.41184853]
[1738452385561,1.6031,213.46,213.36,0.70268049]
[1738452385852,0.063,213.47,213.37,36.62538834]
[1738452386063,0.063,213.47,213.38,0.70259259]
[1738452386358,0.063,213.47,213.39,4.6862]
[1738452386660,1.0413859,213.47,213.4,0.70260165]
[1738452386860,0.063,213.47,213.34,5.39005858]
[1738452387377,1.0413859,213.47,213.34,0.70275858]
[1738452387853,20.0,213.42,213.35,0.70275107]
[1738452388043,20.0,213.42,213.31,0.70289274]
[1738452388555,1.5471,213.4,213.31,0.70289274]
[1738452388737,1.5471,213.4,213.28,0.70299484]
[1738452388925,2.5254859,213.4,213.28,0.70299484]
[1738452390254,1.5471,213.4,213.28,0.70299484]
[1738452390734,1.5471,213.4,213.29,13.41184853]
[1738452390931,1.5471,213.4,213.3,0.70288027]
[1738452391843,1.68026958,213.39,213.3,0.70288027]
[1738452392041,1.5471,213.4,213.31,0.7030617]
[1738452392354,1.68026958,213.39,213.27,0.7329941]
[1738452392554,0.9783859,213.39,213.27,0.7329941]
[1738452393139,0.9783859,213.37,213.27,0.03]
[1738452393440,0.9783859,213.35,213.28,0.70306377]
[1738452393640,0.9783859,213.35,213.27,0.03]
[1738452393845,0.9783859,213.37,213.27,0.03]
[1738452394876,0.70188368,213.36,213.27,0.03]
[1738452395062,0.9783859,213.34,213.27,0.03]
[1738452395841,0.9783859,213.34,213.23,0.70317161]
[1738452396554,0.70188368,213.39,213.23,0.70317161]
[1738452397384,20.0,213.35,213.23,0.70317161]
[1738452397541,2.24898368,213.34,213.22,0.70333263]
[1738452397866,20.0,213.33,213.23,0.70331207]
[1738452398031,0.70188368,213.32,213.23,0.70331207]
[1738452399180,20.0,213.28,213.23,0.70331207]
[1738452399360,20.0,213.28,213.23,0.7034005]
[1738452400581,6.1197,213.31,213.23,0.7034005]
[1738452401046,20.0,213.33,213.23,0.7034005]
[1738452401252,0.70188368,213.32,213.23,0.7034005]
[1738452401452,20.0,213.33,213.23,0.7034005]
[1738452401453,20.70188368,213.33,213.23,0.7034005]
[1738452401679,20.0,213.33,213.23,0.7034005]
[1738452403453,0.70188368,213.32,213.23,0.7034005]
[1738452403854,20.70188368,213.33,213.23,0.7034005]
[1738452405777,20.0,213.33,213.23,0.7034005]
[1738452408891,0.70188368,213.32,213.23,0.7034005]
[1738452409096,0.70188368,213.32,213.22,0.70319797]
[1738452409879,1.88320084,213.32,213.22,0.70319797]
[1738452410795,20.0,213.28,213.22,0.70319797]
[1738452410996,0.70188368,213.27,213.21,26.03652041]
[1738452411497,0.70188368,213.3,213.22,0.70344064]
[1738452411697,0.70188368,213.3,213.21,26.03652041]
[1738452411895,0.70188368,213.3,213.22,0.70340319]
[1738452412293,0.70188368,213.33,213.22,0.70340319]
[1738452412599,20.0,213.29,213.21,26.03652041]
[1738452412795,0.70188368,213.28,213.21,26.03652041]
[1738452413377,20.0,213.29,213.21,26.03652041]
[1738452413673,0.70188368,213.31,213.21,26.03652041]
[1738452413880,20.70188368,213.33,213.22,0.70339116]
[1738452414699,20.0,213.32,213.22,0.70339116]
[1738452414882,0.70188368,213.31,213.22,0.70339116]
[1738452417504,0.70188368,213.31,213.21,26.03652041]
[1738452417903,0.70188368,213.31,213.22,0.70339156]
[1738452421298,2.24898368,213.34,213.22,15.22054245]
[1738452421689,20.0,213.33,213.22,15.22054245]
[1738452422610,20.0,213.33,213.22,0.70339156]
[1738452425082,0.70188368,213.32,213.22,0.70339156]
[1738452427324,20.0,213.33,213.22,0.70339156]
[1738452427815,20.70188368,213.33,213.22,0.70339156]
[1738452428909,20.0,213.33,213.22,0.70339156]
[1738452429209,0.70188368,213.32,213.22,0.70339156]
[1738452429420,20.70188368,213.33,213.22,0.70339156]
[1738452430486,20.0,213.33,213.22,0.70339156]
[1738452430690,20.0,213.33,213.22,5.39319156]
[1738452432011,0.70188368,213.35,213.22,5.39319156]
[1738452432213,2.20478368,213.39,213.24,13.41184853]
[1738452432432,2.3297,213.36,213.25,0.70310772]
[1738452433199,0.70188368,213.35,213.25,0.70310772]
[1738452433507,0.70188368,213.35,213.26,0.70325483]
[1738452433821,0.70188368,213.35,213.22,0.70319627]
[1738452434521,0.70188368,213.35,213.22,0.73319627]
[1738452437407,0.70188368,213.35,213.22,5.42299627]
[1738452438714,20.0,213.34,213.22,5.42299627]
[1738452440509,0.70188368,213.33,213.22,0.73319627]
[1738452441133,20.0,213.34,213.22,0.73319627]
[1738452444529,2.3297,213.36,213.24,13.41184853]
[1738452444738,26.55981364,213.37,213.25,9.99976215]
[1738452444910,26.55981364,213.37,213.26,22.70856814]
[1738452445114,26.55981364,213.37,213.27,0.70299228]
[1738452445625,26.55981364,213.37,213.28,4.6886]
[1738452445831,26.55981364,213.37,213.29,0.70300132]
[1738452447220,26.55981364,213.37,213.3,0.70301848]
[1738452447449,26.55981364,213.37,213.27,0.70303244]
[1738452448040,20.0,213.34,213.27,0.70303244]
[1738452448218,20.0,213.34,213.24,0.703177]
[1738452449733,20.0,213.34,213.24,14.68939661]
[1738452449948,20.0,213.34,213.25,22.70856814]
[1738452450108,20.0,213.34,213.26,0.70301571]
[1738452450810,20.0,213.34,213.26,5.39201571]
[1738452451255,0.063,213.35,213.26,5.39201571]
[1738452451416,0.063,213.35,213.27,13.41184853]
[1738452451738,20.0,213.34,213.28,0.70301528]
[1738452451940,20.0,213.34,213.24,0.70317263]
[1738452456338,20.0,213.34,213.24,23.41174077]
[1738452456636,20.0,213.34,213.24,28.10124077]
[1738452457143,0.063,213.35,213.26,9.29671961]
[1738452457317,0.063,213.35,213.27,0.70299517]
[1738452457642,0.063,213.35,213.27,14.1148437]
[1738452458541,0.063,213.35,213.27,0.70299517]
[1738452463748,20.0,213.34,213.27,0.70299517]
[1738452463955,20.0,213.34,213.28,0.70311494]
[1738452464126,20.0,213.34,213.26,0.03]
[1738452466058,20.0,213.34,213.26,10.02980952]
[1738452466244,20.0,213.34,213.28,9.29671961]
[1738452466453,0.063,213.35,213.3,13.41184853]
[1738452466759,0.063,213.35,213.31,0.70288476]
[1738452468128,0.063,213.35,213.32,13.41184853]
[1738452468467,0.063,213.35,213.33,0.70288162]
[1738452468642,0.063,213.35,213.29,0.70294871]
[1738452471440,20.0,213.34,213.29,0.70294871]
[1738452471641,20.0,213.34,213.26,0.73310714]
[1738452473273,20.0,213.34,213.28,0.03]
[1738452473450,20.0,213.34,213.28,0.7330587]
[1738452474745,0.063,213.35,213.29,22.70856814]
[1738452474962,0.063,213.35,213.3,0.7029089]
[1738452475454,20.0,213.34,213.3,0.7029089]
[1738452475856,20.0,213.34,213.28,0.73308369]
[1738452476155,20.0,213.34,213.29,0.70308608]
[1738452477158,20.0,213.34,213.3,0.70307371]
[1738452477350,20.0,213.34,213.28,0.73307579]
[1738452482963,0.063,213.35,213.29,9.29671961]
[1738452483169,0.063,213.35,213.31,13.41184853]
[1738452483466,0.063,213.35,213.32,0.70289409]
[1738452484538,20.0,213.34,213.29,0.70289159]
[1738452484737,20.0,213.34,213.28,0.03]
[1738452485544,20.063,213.34,213.28,0.03]
[1738452486962,20.76488368,213.34,213.28,0.03]
[1738452487772,20.063,213.34,213.28,0.03]
[1738452489975,2.27528368,213.33,213.28,0.03]
[1738452490149,1.5734,213.33,213.28,0.03]
[1738452491774,20.063,213.34,213.28,0.03]
[1738452492653,0.063,213.34,213.28,0.03]
[1738452494067,0.063,213.34,213.28,0.73314511]
[1738452494258,0.063,213.34,213.29,13.41184853]
[1738452494455,0.063,213.34,213.31,13.41184853]
[1738452494681,0.063,213.34,213.33,13.41184853]
[1738452494989,0.063,213.34,213.33,22.70856814]
[1738452495266,0.063,213.34,213.33,13.41184853]
[1738452495476,0.063,213.34,213.33,14.11463097]
[1738452495851,0.063,213.34,213.33,28.09885058]
[1738452496469,0.063,213.34,213.33,29.69215058]
[1738452496643,0.063,213.34,213.33,30.81764058]
[1738452496849,0.063,213.34,213.33,31.81764058]
[1738452497067,0.063,213.34,213.33,30.69215058]
[1738452497669,0.063,213.34,213.33,35.90137753]
[1738452499164,0.063,213.34,213.33,36.02686753]
[1738452500059,0.063,213.34,213.33,35.90137753]
[1738452500263,0.063,213.34,213.33,15.70793097]
[1738452500859,0.063,213.34,213.33,14.11463097]
[1738452501464,0.063,213.34,213.33,28.62057753]
[1738452502185,0.063,213.34,213.33,14.11463097]
[1738452502561,0.063,213.34,213.33,28.62057753]
[1738452504265,0.063,213.34,213.33,0.70278244]
[1738452504462,0.063,213.34,213.3,0.70290152]
[1738452504658,0.063,213.34,213.31,13.41184853]
[1738452504979,0.063,213.34,213.32,0.70292056]
[1738452505751,0.063,213.34,213.33,27.91779509]
[1738452505956,0.063,213.34,213.33,30.04328509]
[1738452506480,0.063,213.34,213.33,27.91779509]
[1738452506787,0.063,213.34,213.33,28.04328509]
[1738452507082,0.063,213.34,213.33,32.60529509]
[1738452507286,0.063,213.34,213.33,0.70277122]
[1738452507467,0.063,213.34,213.33,14.11461975]
[1738452508087,0.063,213.34,213.33,28.62056631]
[1738452508382,0.063,213.34,213.33,33.30806631]
[1738452508764,0.063,213.34,213.33,33.43355631]
[1738452510281,0.063,213.34,213.33,33.46355631]
[1738452510484,0.063,213.34,213.33,34.46355631]
[1738452510862,0.063,213.35,213.34,1.0]
[1738452511060,0.063,213.47,213.37,13.53733853]
[1738452511260,0.063,213.47,213.39,27.91779509]
[1738452511463,0.063,213.47,213.39,29.04328509]
[1738452512590,0.063,213.47,213.39,33.72948509]
[1738452512786,0.063,213.47,213.39,33.30648562]
[1738452513565,0.063,213.47,213.39,14.11433906]
[1738452514092,0.063,213.47,213.39,0.70249053]
[1738452514301,0.063,213.47,213.33,0.73275427]
[1738452514499,1.6485,213.43,213.33,0.73275427]
[1738452515381,20.0,213.41,213.34,13.41184853]
[1738452515586,20.0,213.41,213.35,0.70282247]
[1738452515973,1.2115,213.43,213.36,13.41184853]
[1738452516198,1.2115,213.43,213.37,0.70275458]
[1738452516574,0.04015577,213.43,213.37,0.70275458]
[1738452518094,20.0,213.41,213.35,0.70276183]
[1738452518296,20.0,213.41,213.33,0.73289378]
[1738452518866,0.04015577,213.43,213.34,13.41184853]
[1738452519068,0.04015577,213.43,213.36,13.41184853]
[1738452519372,0.04015577,213.43,213.34,13.41184853]
[1738452519373,0.063,213.47,213.38,27.91779509]
[1738452519571,21.6485,213.46,213.39,0.70271183]
[1738452519770,21.6485,213.46,213.35,0.70278292]
[1738452520071,21.6485,213.46,213.36,13.41184853]
[1738452520271,21.6485,213.46,213.37,0.70274462]
[1738452521194,21.6485,213.46,213.38,13.41184853]
[1738452521398,21.6485,213.46,213.39,0.70266914]
[1738452522599,20.0,213.46,213.39,0.70266914]
[1738452523079,0.063,213.47,213.39,0.70266914]
[1738452523570,20.0,213.46,213.39,0.70266914]
[1738452523771,20.0,213.46,213.4,0.70275791]
[1738452523979,20.0,213.46,213.36,0.70275248]
[1738452524581,0.70188368,213.45,213.36,0.70275248]
[1738452524769,0.70188368,213.45,213.37,0.70283481]
[1738452524973,1.6485,213.44,213.33,0.73286759]
[1738452525173,0.70188368,213.43,213.33,0.73286759]
[1738452526102,0.70188368,213.43,213.34,0.70293021]
[1738452526901,0.70188368,213.43,213.35,0.70290306]
[1738452527104,0.70188368,213.43,213.33,0.73290814]
[1738452527706,0.70188368,213.43,213.33,0.03]
[1738452527908,20.0,213.39,213.33,0.03]
[1738452528085,0.70188368,213.38,213.33,0.03]
[1738452529506,1.5017,213.37,213.28,0.03]
[1738452529700,0.70188368,213.36,213.28,0.733215]
[1738452529911,0.70188368,213.36,213.28,0.03]
[1738452530091,0.70188368,213.36,213.28,0.73315984]
[1738452531106,0.70188368,213.36,213.29,0.70314813]
[1738452531294,1.5017,213.37,213.29,0.70314813]
[1738452531708,0.70188368,213.41,213.29,0.70314813]
[1738452532687,20.0,213.39,213.29,0.70314813]
[1738452533900,20.0,213.39,213.3,13.41184853]
[1738452534101,20.0,213.39,213.31,0.70295014]
[1738452534407,0.70188368,213.38,213.28,0.7330555]
[1738452534581,20.0,213.39,213.28,0.7330555]
[1738452535206,20.0,213.39,213.28,15.23900206]
[1738452535411,20.0,213.39,213.29,27.91779509]
[1738452535720,8.1342,213.42,213.31,13.41184853]
[1738452536008,20.0,213.39,213.32,0.70291526]
[1738452537785,1.5017,213.42,213.32,0.70291526]
[1738452537986,20.0,213.41,213.32,0.70291526]
[1738452538597,1.5017,213.42,213.32,0.70291526]
[1738452538799,20.0,213.41,213.32,0.70291526]
[1738452539200,20.70188368,213.41,213.32,0.70291526]
[1738452539710,20.0,213.41,213.32,0.70291526]
[1738452540883,0.70188368,213.4,213.32,0.70291526]
[1738452541088,0.70188368,213.4,213.28,0.73305694]
[1738452541410,0.70188368,213.4,213.29,13.41184853]
[1738452541590,0.70188368,213.4,213.3,0.70302965]
[1738452541790,20.0,213.41,213.3,0.70302965]
[1738452542005,0.063,213.43,213.34,1.6119]
[1738452542215,0.063,213.43,213.36,13.41184853]
[1738452542412,0.063,213.43,213.37,0.70274377]
[1738452543096,0.063,213.43,213.35,0.70285717]
[1738452543498,20.0,213.4,213.31,0.70292735]
[1738452543720,20.0,213.4,213.29,1.6119]
[1738452543721,0.70188368,213.39,213.3,0.70304159]
[1738452545091,20.0,213.4,213.3,0.70304159]
[1738452545614,20.0,213.4,213.31,13.41184853]
[1738452545798,20.0,213.4,213.32,0.70290301]
[1738452546111,20.0,213.4,213.33,0.70299106]
[1738452546319,20.0,213.4,213.3,0.70298047]
[1738452546620,20.063,213.4,213.3,0.70298047]
[1738452547117,20.063,213.4,213.31,13.41184853]
[1738452547324,0.063,213.4,213.33,13.41184853]